fUSD/lending_fUSD_20260121
["ID","MTS","AMOUNT","RATE_DAILY","PERIOD"]
[402918141,1768987548420,-535.51,0.00041643,120]
[402918142,1768987548460,-500.0,0.00041643,120]
[402918143,1768987548498,-500.0,0.00041643,90]
[402918144,1768987548537,-500.0,0.00041643,120]
[402918145,1768987548577,-500.0,0.00041643,120]
[402918146,1768987548618,-644.47,0.00041643,120]
[402918147,1768987548658,-500.0,0.00041643,120]
[402918148,1768987548697,-500.0,0.00041643,120]
[402918149,1768987548740,-500.0,0.00041643,120]
[402918150,1768987548789,-500.0,0.00041643,120]
[402918151,1768987548840,-341.51749123,0.00041643,120]
[402918152,1768987548881,-500.0,0.00041643,120]
[402918153,1768987548924,-500.0,0.00041643,120]
[402918154,1768987548966,-500.0,0.00041643,120]
[402918155,1768987549008,-500.0,0.00041643,120]
[402918156,1768987549051,-500.0,0.00041643,120]
[402918157,1768987549098,-696.85,0.00041643,120]
[402918158,1768987549143,-500.0,0.00041643,120]
[402918159,1768987549186,-500.0,0.00041643,120]
[402918160,1768987549229,-623.64,0.00041643,120]
[402918161,1768987549274,-889.13,0.00041643,120]
[402918162,1768987549316,-500.0,0.00041643,120]
[402918163,1768987549361,-691.15,0.00041643,120]
[402918164,1768987549410,-500.0,0.00041643,120]
[402918165,1768987549455,-500.0,0.00041643,120]
[402918166,1768987549504,-500.0,0.00041643,120]
[402918167,1768987549546,-500.0,0.00041643,120]
[402918168,1768987549587,-500.0,0.00041643,120]
[402918169,1768987549630,-567.88,0.00041643,120]
[402918170,1768987549672,-500.0,0.00041643,120]
[402918171,1768987549720,-655.24,0.00041643,120]
[402918172,1768987549768,-500.0,0.00041643,120]
[402918173,1768987549810,-500.0,0.00041643,120]
[402918174,1768987549852,-500.0,0.00041643,120]
[402918175,1768987549895,-500.0,0.00041643,120]
[402918176,1768987549938,-500.0,0.00041643,120]
[402918177,1768987549980,-500.0,0.00041643,120]
[402918178,1768987550026,-645.41,0.00041643,120]
[402918179,1768987550072,-698.04,0.00041643,120]
[402918180,1768987550116,-545.16,0.00041643,120]
[402918181,1768987550159,-507.63,0.00041643,120]
[402918182,1768987550201,-500.0,0.00041643,120]
[402918183,1768987550245,-500.0,0.00041643,120]
[402918184,1768987550287,-500.0,0.00041643,120]
[402918185,1768987550330,-500.0,0.00041643,120]
[402918186,1768987550371,-500.0,0.00041643,120]
[402918187,1768987550411,-1000.0,0.00041644,30]
[402918188,1768987550458,-1100.0,0.00041888,60]
[402918189,1768987550499,-500.0,0.00041888,60]
[402918190,1768987550541,-726.21,0.00041917,120]
[402918191,1768987550783,-500.0,0.00041917,120]
[402918192,1768987550827,-862.89,0.00041917,120]
[402918193,1768987550873,-500.0,0.00041917,120]
[402918194,1768987550916,-500.0,0.00041917,120]
[402918195,1768987550960,-500.0,0.00041917,120]
[402918196,1768987551001,-500.0,0.00041917,120]
[402918197,1768987551043,-500.0,0.00041917,120]
[402918198,1768987551087,-500.0,0.00041917,120]
[402918199,1768987551132,-500.0,0.00041917,120]
[402918200,1768987551183,-572.26,0.00041917,120]
[402918201,1768987551226,-500.0,0.00041917,120]
[402918202,1768987551279,-500.0,0.00041917,120]
[402918203,1768987551323,-500.0,0.00041917,120]
[402918204,1768987551367,-500.0,0.00041917,120]
[402918205,1768987551408,-500.0,0.00041917,120]
[402918206,1768987551454,-500.0,0.00041917,120]
[402918207,1768987551503,-1126.09,0.00041917,120]
[402918208,1768987551548,-500.0,0.00041917,120]
[402918209,1768987551591,-500.0,0.00041917,120]
[402918210,1768987551633,-500.0,0.00041917,120]
[402918211,1768987551677,-757.16,0.00041917,120]
[402918212,1768987551718,-500.0,0.00041917,120]
[402918213,1768987551760,-500.0,0.00041917,120]
[402918214,1768987551802,-500.0,0.00041917,120]
[402918215,1768987551842,-500.0,0.00041917,120]
[402918216,1768987551882,-500.0,0.00041917,120]
[402918217,1768987551923,-500.0,0.00041917,120]
[402918218,1768987551970,-500.0,0.00041917,120]
[402918219,1768987552012,-500.0,0.00041917,120]
[402918220,1768987552054,-500.0,0.00041917,120]
[402918221,1768987552101,-500.0,0.00041917,120]
[402918222,1768987552149,-500.0,0.00041917,120]
[402918223,1768987552193,-500.0,0.00041917,120]
[402918224,1768987552236,-1000.0,0.00041917,120]
[402918225,1768987552290,-500.0,0.00041917,120]
[402918226,1768987552340,-500.0,0.00041917,120]
[402918227,1768987552383,-500.0,0.00041917,120]
[402918228,1768987552426,-760.9,0.00041917,120]
[402918229,1768987552467,-500.0,0.00041917,120]
[402918230,1768987552510,-500.0,0.00041917,120]
[402918231,1768987552550,-500.0,0.00041917,120]
[402918232,1768987552590,-668.11,0.00041917,120]
[402918233,1768987552632,-500.0,0.00041917,120]
[402918234,1768987552677,-500.0,0.00041917,120]
[402918235,1768987552718,-500.0,0.00041917,120]
[402918236,1768987552760,-637.16,0.00041917,120]
[402918237,1768987552802,-505.66,0.00041917,120]
[402918238,1768987552845,-1065.16,0.00041917,120]
[402918239,1768987552887,-1064.67,0.00041917,120]
[402918240,1768987552930,-500.0,0.00041917,120]
[402918241,1768987552973,-871.03,0.00041917,120]
[402918242,1768987553017,-525.23,0.00041917,120]
[402918243,1768987553065,-500.0,0.00041917,120]
[402918244,1768987553111,-662.06,0.00041917,120]
[402918245,1768987553156,-1051.35,0.00041917,120]
[402918246,1768987553199,-1104.23,0.00041917,120]
[402918247,1768987553244,-500.0,0.00041917,120]
[402918248,1768987553294,-500.0,0.00041917,120]
[402918249,1768987553340,-462.80830869,0.00041917,120]
[402918250,1768987553384,-500.0,0.00041917,120]
[402918251,1768987553441,-500.0,0.00041917,120]
[402918252,1768987553488,-500.0,0.00041917,120]
[402918253,1768987553531,-662.74,0.00041917,120]
[402918254,1768987553574,-543.88,0.00041917,120]
[402918255,1768987553616,-516.51243845,0.00041917,120]
[402918256,1768987553658,-500.0,0.00041917,120]
[402918257,1768987553700,-592.98,0.00041917,120]
[402918258,1768987553742,-500.0,0.00041917,120]
[402918259,1768987553785,-500.0,0.00041917,120]
[402918260,1768987553827,-732.36,0.00041917,120]
[402918261,1768987553869,-500.0,0.00041917,120]
[402918262,1768987553914,-500.0,0.00041917,120]
[402918263,1768987553960,-584.28,0.00041917,120]
[402918264,1768987554006,-500.0,0.00041917,120]
[402918265,1768987554054,-512.89,0.00041917,120]
[402918266,1768987554112,-594.65,0.00041917,120]
[402918267,1768987554159,-500.0,0.00041917,120]
[402918268,1768987554209,-500.0,0.00041917,120]
[402918269,1768987554257,-500.0,0.00041917,120]
[402918270,1768987554303,-500.0,0.00041917,120]
[402918271,1768987554349,-500.0,0.00041917,120]
[402918272,1768987554395,-500.0,0.00041917,120]
[402918273,1768987554443,-500.0,0.00041917,120]
[402918274,1768987554489,-500.0,0.00041917,120]
[402918275,1768987554534,-726.3,0.00041917,120]
[402918276,1768987554578,-500.0,0.00041917,120]
[402918277,1768987554625,-500.0,0.00041917,120]
[402918278,1768987554672,-500.0,0.00041917,120]
[402918279,1768987554718,-669.38,0.00041917,120]
[402918280,1768987554763,-500.0,0.00041917,120]
[402918281,1768987554811,-338.48,0.00041917,120]
[402918282,1768987554856,-500.0,0.00041917,120]
[402918283,1768987554903,-423.20347201,0.00041917,120]
[402918284,1768987554949,-500.0,0.00041917,120]
[402918285,1768987554996,-501.79,0.00041917,120]
[402918286,1768987555338,-500.0,0.00041917,120]
[402918287,1768987555380,-473.70111053,0.00041917,120]
[402918288,1768987555421,-282.75138273,0.00041917,120]
[402918289,1768987555463,-500.0,0.00041917,120]
[402918290,1768987555508,-500.0,0.00041917,120]
[402918291,1768987555549,-529.96212675,0.00041917,120]
[402918292,1768987555590,-633.52,0.00041917,120]
[402918293,1768987555631,-500.0,0.00041917,120]
[402918294,1768987555673,-885.04,0.00041917,120]
[402918295,1768987555714,-500.0,0.00041917,120]
[402918296,1768987555756,-500.0,0.00041917,120]
[402918297,1768987555799,-500.0,0.00041917,120]
[402918298,1768987555840,-500.0,0.00041917,120]
[402918299,1768987555897,-523.40164978,0.00041917,120]
[402918300,1768987555944,-500.0,0.00041917,120]
[402918301,1768987555988,-594.03,0.00041917,120]
[402918302,1768987556034,-582.17,0.00041917,120]
[402918303,1768987556078,-500.0,0.00041917,120]
[402918304,1768987556124,-500.0,0.00041917,120]
[402918305,1768987556172,-500.0,0.00041917,120]
[402918306,1768987556220,-500.0,0.00041917,120]
[402918307,1768987556272,-500.0,0.00041917,120]
[402918308,1768987556318,-500.0,0.00041917,120]
[402918309,1768987556363,-500.0,0.00041917,120]
[402918310,1768987556408,-500.0,0.00041917,120]
[402918311,1768987556451,-500.0,0.00041917,120]
[402918312,1768987556496,-558.07419583,0.00041917,120]
[402918313,1768987556541,-500.0,0.00041917,120]
[402918314,1768987556591,-500.0,0.00041917,120]
[402918315,1768987556637,-723.02,0.00041917,120]
[402918316,1768987556683,-500.0,0.00041917,120]
[402918317,1768987556729,-500.0,0.00041917,120]
[402918318,1768987556773,-500.0,0.00041917,120]
[402918319,1768987556819,-500.0,0.00041917,120]
[402918320,1768987556868,-679.71,0.00041917,120]
[402918321,1768987556916,-500.0,0.00041917,120]
[402918322,1768987556963,-500.0,0.00041917,120]
[402918323,1768987557010,-714.9,0.00041917,120]
[402918324,1768987557056,-532.64368739,0.00041917,120]
[402918325,1768987557107,-500.0,0.00041917,120]
[402918326,1768987557159,-500.0,0.00041917,120]
[402918327,1768987557207,-589.5,0.00041917,120]
[402918328,1768987557255,-500.0,0.00041917,120]
[402918329,1768987557302,-500.0,0.00041917,120]
[402918330,1768987557348,-500.0,0.00041917,120]
[402918331,1768987557393,-1331.3,0.00041917,120]
[402918332,1768987557437,-500.0,0.00041917,120]
[402918333,1768987557481,-606.96,0.00041917,120]
[402918334,1768987557530,-500.0,0.00041917,120]
[402918335,1768987557579,-515.74,0.00041917,120]
[402918336,1768987557628,-632.04,0.00041917,120]
[402918337,1768987557671,-513.47,0.00041917,120]
[402918338,1768987557715,-559.52,0.00041917,120]
[402918339,1768987557757,-500.0,0.00041917,120]
[402918340,1768987557801,-752.51,0.00041917,120]
[402918341,1768987557844,-500.0,0.00041917,120]
[402918342,1768987557887,-500.0,0.00041917,120]
[402918343,1768987557931,-500.0,0.00041917,120]
[402918344,1768987557975,-500.0,0.00041917,120]
[402918345,1768987558021,-500.0,0.00041917,120]
[402918346,1768987558065,-323.34590243,0.00041917,120]
[402918347,1768987558115,-500.0,0.00041917,120]
[402918348,1768987558159,-500.0,0.00041917,120]
[402918349,1768987558203,-669.57,0.00041917,120]
[402918350,1768987558247,-500.0,0.00041917,60]
[402918351,1768987558290,-500.0,0.00041917,120]
[402918352,1768987558332,-500.0,0.00041917,60]
[402918353,1768987558374,-500.0,0.00041917,120]
[402918354,1768987558416,-500.0,0.00041917,120]
[402918355,1768987558456,-500.0,0.00041917,120]
[402918356,1768987558498,-500.0,0.00041917,120]
[402918357,1768987558540,-500.0,0.00041917,120]
[402918358,1768987558581,-1155.7,0.00041917,120]
[402918359,1768987558622,-1350.75,0.00041917,120]
[402918360,1768987558662,-500.0,0.00041917,120]
[402918361,1768987558703,-500.0,0.00041917,120]
[402918362,1768987558746,-529.76,0.00041917,120]
[402918363,1768987558788,-500.0,0.00041917,120]
[402918364,1768987558830,-500.0,0.00041917,120]
[402918365,1768987558872,-766.15,0.00041917,120]
[402918366,1768987558916,-853.58,0.00041917,120]
[402918367,1768987558961,-841.94,0.00041917,120]
[402918368,1768987559007,-500.0,0.00041917,120]
[402918369,1768987559052,-695.08,0.00041917,120]
[402918370,1768987559100,-519.43,0.00041917,120]
[402918371,1768987559149,-500.0,0.00041917,120]
[402918372,1768987559195,-500.0,0.00041917,120]
[402918373,1768987559241,-500.0,0.00041917,120]
[402918374,1768987559287,-622.11,0.00041917,120]
[402918375,1768987559331,-500.0,0.00041917,120]
[402918376,1768987559373,-586.24,0.00041917,120]
[402918377,1768987559416,-535.51,0.00041917,120]
[402918378,1768987559458,-500.0,0.00041917,120]
[402918379,1768987559500,-500.0,0.00041917,90]
[402918380,1768987559752,-500.0,0.00041917,120]
[402918381,1768987559799,-500.0,0.00041917,120]
[402918382,1768987559844,-644.47,0.00041917,120]
[402918383,1768987559891,-500.0,0.00041917,120]
[402918384,1768987559941,-500.0,0.00041917,120]
[402918385,1768987559993,-500.0,0.00041917,120]
[402918386,1768987560039,-500.0,0.00041917,120]
[402918387,1768987560088,-500.0,0.00041917,120]
[402918388,1768987560138,-500.0,0.00041917,120]
[402918389,1768987560187,-500.0,0.00041917,120]
[402918390,1768987560233,-500.0,0.00041917,120]
[402918391,1768987560281,-500.0,0.00041917,120]
[402918392,1768987560324,-696.85,0.00041917,120]
[402918393,1768987560367,-500.0,0.00041917,120]
[402918394,1768987560411,-500.0,0.00041917,120]
[402918395,1768987560453,-623.64,0.00041917,120]
[402918396,1768987560496,-889.13,0.00041917,120]
[402918397,1768987560538,-500.0,0.00041917,120]
[402918398,1768987560580,-691.15,0.00041917,120]
[402918399,1768987560622,-500.0,0.00041917,120]
[402918400,1768987560662,-500.0,0.00041917,120]
[402918401,1768987560703,-500.0,0.00041917,120]
[402918402,1768987560745,-500.0,0.00041917,120]
[402918403,1768987560787,-567.88,0.00041917,120]
[402918404,1768987560829,-500.0,0.00041917,120]
[402918405,1768987560872,-655.24,0.00041917,120]
[402918406,1768987560914,-500.0,0.00041917,120]
[402918407,1768987560956,-500.0,0.00041917,120]
[402918408,1768987561000,-500.0,0.00041917,120]
[402918409,1768987561043,-500.0,0.00041917,120]
[402918410,1768987561087,-500.0,0.00041917,120]
[402918411,1768987561132,-500.0,0.00041917,120]
[402918412,1768987561179,-645.41,0.00041917,120]
[402918413,1768987561224,-698.04,0.00041917,120]
[402918414,1768987561269,-545.16,0.00041917,120]
[402918415,1768987561313,-507.63,0.00041917,120]
[402918416,1768987561354,-522.59502092,0.00041917,120]
[402918417,1768987561398,-500.0,0.00041917,120]
[402918418,1768987561441,-500.0,0.00041917,120]
[402918419,1768987561485,-500.0,0.00041917,120]
[402918420,1768987561527,-500.0,0.00041917,120]
[402918421,1768987561570,-1000.0,0.00041918,30]
[402918422,1768987561614,-711.62546778,0.00042,120]
[402918423,1768987561657,-792.0,0.00042,30]
[402918424,1768987561700,-151.0,0.0004219,120]
[402918425,1768987561741,-500.0,0.0004219,120]
[402918426,1768987561784,-250.0,0.0004219,120]
[402918427,1768987561828,-6888.0,0.0004219,120]
[402918428,1768987561871,-2567.0,0.0004219,120]
[402918429,1768987561914,-156.587,0.0004219,120]
[402918430,1768987561958,-151.0,0.0004219,120]
[402918431,1768987562004,-2000.0,0.0004219,120]
[402918432,1768987562049,-500.0,0.0004219,120]
[402918433,1768987562095,-250.0,0.0004219,120]
[402918434,1768987562140,-7142.856,0.0004219,120]
[402918435,1768987562189,-2567.0,0.0004219,120]
[402918436,1768987562235,-620.0,0.0004219,120]
[402918437,1768987562286,-151.0,0.0004219,120]
[402918438,1768987562336,-2000.0,0.0004219,120]
[402918439,1768987562381,-500.0,0.0004219,120]
[402918440,1768987562426,-250.0,0.0004219,120]
[402918441,1768987562470,-162.380719,0.0004219,120]
[402918442,1768987562515,-642.94,0.0004219,120]
[402918443,1768987562561,-2567.0,0.0004219,120]
[402918444,1768987562611,-151.0,0.0004219,120]
[402918445,1768987562661,-2000.0,0.0004219,120]
[402918446,1768987562706,-250.0,0.0004219,120]
[402918447,1768987562749,-500.0,0.0004219,120]
[402918448,1768987562794,-168.3888056,0.0004219,120]
[402918449,1768987562837,-666.72878,0.0004219,120]
[402918450,1768987562883,-2567.0,0.0004219,120]
[402918451,1768987562928,-2000.0,0.0004219,120]
[402918452,1768987562973,-151.0,0.0004219,120]
[402918453,1768987563019,-250.0,0.0004219,120]
[402918454,1768987563064,-500.0,0.0004219,120]
[402918455,1768987563119,-177.01239052,0.0004219,120]
[402918456,1768987563171,-691.39774486,0.0004219,120]
[402918457,1768987563223,-2567.0,0.0004219,120]
[402918458,1768987563271,-151.0,0.0004219,120]
[402918459,1768987563322,-2000.0,0.0004219,120]
[402918460,1768987563365,-250.0,0.0004219,120]
[402918461,1768987563410,-500.0,0.0004219,120]
[402918462,1768987563456,-151.0,0.0004219,120]
[402918463,1768987563503,-7407.141672,0.0004219,120]
[402918464,1768987563548,-716.97946142,0.0004219,120]
[402918465,1768987563592,-2567.0,0.0004219,120]
[402918466,1768987563636,-151.0,0.0004219,120]
[402918467,1768987563682,-2000.0,0.0004219,120]
[402918468,1768987563726,-250.0,0.0004219,120]
[402918469,1768987563770,-500.0,0.0004219,120]
[402918470,1768987563813,-151.0,0.0004219,120]
[402918471,1768987563857,-7681.20591386,0.0004219,120]
[402918472,1768987563902,-743.50770149,0.0004219,120]
[402918473,1768987563949,-2567.0,0.0004219,120]
[402918474,1768987564171,-151.0,0.0004219,120]
[402918475,1768987564231,-2000.0,0.0004219,120]
[402918476,1768987564285,-303.89373247,0.0004219,120]
[402918477,1768987564336,-500.0,0.0004219,120]
[402918478,1768987564381,-151.0,0.0004219,120]
[402918479,1768987564427,-7965.41053268,0.0004219,120]
[402918480,1768987564470,-499.35344651,0.0004219,120]
[402918481,1768987564514,-151.0,0.0004219,120]
[402918482,1768987564561,-2567.0,0.0004219,120]
[402918483,1768987564609,-2000.0,0.0004219,120]
[402918484,1768987564659,-500.0,0.0004219,120]
[402918485,1768987564704,-151.0,0.0004219,120]
[402918486,1768987564749,-8260.13072239,0.0004219,120]
[402918487,1768987564795,-151.0,0.0004219,120]
[402918488,1768987564842,-2567.0,0.0004219,120]
[402918489,1768987564891,-2000.0,0.0004219,120]
[402918490,1768987564939,-2000.0,0.0004219,120]
[402918491,1768987564987,-500.0,0.0004219,120]
[402918492,1768987565034,-151.0,0.0004219,120]
[402918493,1768987565084,-8565.75555911,0.0004219,120]
[402918494,1768987565132,-151.0,0.0004219,120]
[402918495,1768987565182,-2000.0,0.0004219,120]
[402918496,1768987565230,-2567.0,0.0004219,120]
[402918497,1768987565277,-500.0,0.0004219,120]
[402918498,1768987565325,-2000.0,0.0004219,120]
[402918499,1768987565369,-254.45177789,0.0004219,120]
[402918500,1768987565415,-1268.37155993,0.0004219,120]
[402918501,1768987565461,-250.05741751,0.0004219,120]
[402918502,1768987565507,-2000.0,0.0004219,120]
[402918503,1768987565551,-2567.0,0.0004219,120]
[402918504,1768987565594,-500.0,0.0004219,120]
[402918505,1768987565642,-2000.0,0.0004219,120]
[402918506,1768987565687,-2000.0,0.0004219,120]
[402918507,1768987565732,-2567.0,0.0004219,120]
[402918508,1768987565776,-300.0,0.0004219,120]
[402918509,1768987565821,-264.85852013,0.0004219,120]
[402918510,1768987565866,-2000.0,0.0004219,120]
[402918511,1768987565911,-520.0,0.0004219,120]
[402918512,1768987565963,-311.1,0.0004219,120]
[402918513,1768987566012,-2000.0,0.0004219,120]
[402918514,1768987566058,-2567.0,0.0004219,120]
[402918515,1768987566109,-322.6107,0.0004219,120]
[402918516,1768987566157,-2000.0,0.0004219,120]
[402918517,1768987566207,-2000.0,0.0004219,120]
[402918518,1768987566253,-322.6107,0.0004219,120]
[402918519,1768987566300,-2000.0,0.0004219,120]
[402918520,1768987566345,-2000.0,0.0004219,120]
[402918521,1768987566390,-2567.0,0.0004219,120]
[402918522,1768987566434,-2000.0,0.0004219,120]
[402918523,1768987566478,-151.0,0.0004219,120]
[402918524,1768987566525,-2567.0,0.0004219,120]
[402918525,1768987566572,-2000.0,0.0004219,120]
[402918526,1768987566618,-539.24,0.0004219,120]
[402918527,1768987566664,-151.0,0.0004219,120]
[402918528,1768987566714,-2567.0,0.0004219,120]
[402918529,1768987566760,-2000.0,0.0004219,120]
[402918530,1768987566805,-2567.0,0.0004219,120]
[402918531,1768987566850,-151.0,0.0004219,120]
[402918532,1768987566896,-151.0,0.0004219,120]
[402918533,1768987566944,-2000.0,0.0004219,120]
[402918534,1768987566989,-151.0,0.0004219,120]
[402918535,1768987567035,-1889.64971391,0.0004219,120]
[402918536,1768987567087,-151.0,0.0004219,120]
[402918537,1768987567140,-151.0,0.0004219,120]
[402918538,1768987567191,-151.0,0.0004219,120]
[402918539,1768987567238,-151.0,0.0004219,120]
[402918540,1768987567287,-151.0,0.0004219,120]
[402918541,1768987567333,-151.0,0.0004219,120]
[402918542,1768987567379,-559.19188,0.0004219,120]
[402918543,1768987567424,-151.0,0.0004219,120]
[402918544,1768987567468,-2000.0,0.0004219,120]
[402918545,1768987567519,-2567.0,0.0004219,120]
[402918546,1768987567564,-579.88197956,0.0004219,120]
[402918547,1768987567611,-2000.0,0.0004219,120]
[402918548,1768987567659,-500.0,0.0004219,120]
[402918549,1768987567705,-2567.0,0.0004219,120]
[402918550,1768987567751,-601.3376128,0.0004219,120]
[402918551,1768987567797,-200.51540943,0.0004219,120]
[402918552,1768987567843,-2000.0,0.0004219,120]
[402918553,1768987567890,-500.0,0.0004219,120]
[402918554,1768987567939,-2567.0,0.0004219,120]
[402918555,1768987567985,-623.58710448,0.0004219,120]
[402918556,1768987568031,-2000.0,0.0004219,120]
[402918557,1768987568079,-500.0,0.0004219,120]
[402918558,1768987568125,-3000.0,0.0004219,120]
[402918559,1768987568171,-646.65982734,0.0004219,120]
[402918560,1768987568219,-151.0,0.0004219,120]
[402918561,1768987568267,-500.0,0.0004219,120]
[402918562,1768987568323,-3000.0,0.0004219,120]
[402918563,1768987568372,-670.58624095,0.0004219,120]
[402918564,1768987568421,-151.0,0.0004219,120]
[402918565,1768987568469,-2000.0,0.0004219,120]
[402918566,1768987568515,-500.0,0.0004219,120]
[402918567,1768987568560,-3000.0,0.0004219,120]
[402918568,1768987568605,-771.66906974,0.0004219,120]
[402918569,1768987568958,-176.35949972,0.0004219,120]
[402918570,1768987569006,-2000.0,0.0004219,120]
[402918571,1768987569055,-500.0,0.0004219,120]
[402918572,1768987569104,-3000.0,0.0004219,120]
[402918573,1768987569156,-2000.0,0.0004219,120]
[402918574,1768987569205,-500.0,0.0004219,120]
[402918575,1768987569250,-500.0,0.0004219,120]
[402918576,1768987569300,-3000.0,0.0004219,120]
[402918577,1768987569347,-151.0,0.0004219,120]
[402918578,1768987569395,-2000.0,0.0004219,120]
[402918579,1768987569442,-500.0,0.0004219,120]
[402918580,1768987569496,-500.0,0.0004219,120]
[402918581,1768987569550,-3000.0,0.0004219,120]
[402918582,1768987569610,-156.587,0.0004219,120]
[402918583,1768987569657,-2000.0,0.0004219,120]
[402918584,1768987569703,-500.0,0.0004219,120]
[402918585,1768987569749,-3000.0,0.0004219,120]
[402918586,1768987569795,-162.380719,0.0004219,120]
[402918587,1768987569838,-500.0,0.0004219,120]
[402918588,1768987569883,-2000.0,0.0004219,120]
[402918589,1768987569929,-500.0,0.0004219,120]
[402918590,1768987569974,-168.3888056,0.0004219,120]
[402918591,1768987570025,-1000.0,0.0004219,120]
[402918592,1768987570073,-500.0,0.0004219,120]
[402918593,1768987570129,-500.0,0.0004219,120]
[402918594,1768987570178,-174.61919141,0.0004219,120]
[402918595,1768987570228,-1000.0,0.0004219,120]
[402918596,1768987570276,-2081.53780851,0.0004219,120]
[402918597,1768987570324,-500.0,0.0004219,120]
[402918598,1768987570370,-500.0,0.0004219,120]
[402918599,1768987570415,-181.08010149,0.0004219,120]
[402918600,1768987570465,-1000.0,0.0004219,120]
[402918601,1768987570511,-3000.0,0.0004219,120]
[402918602,1768987570557,-500.0,0.0004219,120]
[402918603,1768987570603,-500.0,0.0004219,120]
[402918604,1768987570663,-187.78006525,0.0004219,120]
[402918605,1768987570709,-1000.0,0.0004219,120]
[402918606,1768987570756,-549.25704845,0.0004219,120]
[402918607,1768987570799,-3000.0,0.0004219,120]
[402918608,1768987570843,-194.72792766,0.0004219,120]
[402918609,1768987570886,-1000.0,0.0004219,120]
[402918610,1768987570928,-500.0,0.0004219,120]
[402918611,1768987570972,-3009.43614154,0.0004219,120]
[402918612,1768987571018,-201.93286099,0.0004219,120]
[402918613,1768987571063,-1000.0,0.0004219,120]
[402918614,1768987571115,-518.5,0.0004219,120]
[402918615,1768987571164,-327.898671,0.0004219,120]
[402918616,1768987571218,-1000.0,0.0004219,120]
[402918617,1768987571266,-537.6845,0.0004219,120]
[402918618,1768987571313,-1000.0,0.0004219,120]
[402918619,1768987571358,-557.5788265,0.0004219,120]
[402918620,1768987571404,-250.0,0.0004219,120]
[402918621,1768987571451,-1000.0,0.0004219,120]
[402918622,1768987571497,-578.20924308,0.0004219,120]
[402918623,1768987571543,-500.0,0.0004219,120]
[402918624,1768987571589,-250.0,0.0004219,120]
[402918625,1768987571638,-1000.0,0.0004219,120]
[402918626,1768987571683,-578.20924308,0.0004219,120]
[402918627,1768987571727,-500.0,0.0004219,120]
[402918628,1768987571770,-250.0,0.0004219,120]
[402918629,1768987571816,-1000.0,0.0004219,120]
[402918630,1768987571861,-500.0,0.0004219,120]
[402918631,1768987571906,-250.0,0.0004219,120]
[402918632,1768987571949,-600.0,0.0004219,120]
[402918633,1768987571995,-414.0,0.0004219,120]
[402918634,1768987572041,-250.0,0.0004219,120]
[402918635,1768987572090,-1000.0,0.0004219,120]
[402918636,1768987572137,-500.0,0.0004219,120]
[402918637,1768987572185,-250.0,0.0004219,120]
[402918638,1768987572231,-429.318,0.0004219,120]
[402918639,1768987572277,-250.0,0.0004219,120]
[402918640,1768987572325,-1000.0,0.0004219,120]